Cogmind - Beta 17 @@@ ROGUE MODE // 2026.07.05 @ 14:46:30 Player: aperiodic Result: Destroyed self with Mini Grenade Launcher Performance ------------- Evolutions (0) 0 Regions Visited (2) 400 Robots Destroyed (32) 160 Value Destroyed (568) 568 Prototype IDs (16) 320 Alien Tech Used (0) 0 Bonus (0) 0 TOTAL SCORE: 1448 Bonus ------- None Cogmind --------- Core Integrity 0/250 Matter 270/300 Energy 184/200 System Corruption 0% Temperature Cool (0) Movement Treading (560) Ox4 Location -10/Subcaves Parts ------- > --- POWER (1) -------- Subdweller Power Source > --- PROPULSION (2) --- Spiked Treads Compact Wheel > --- UTILITY (2) ------ Huge Storage Unit > --- WEAPON (2) ------- Makeshift Laser Mini Grenade Launcher > --- INVENTORY (25) --- Subdweller Power Source Subdweller Power Source Wheel Wheel Subdweller Monowheel Large Storage Unit Large Matter Pod (150) Structural Scanner Gun Armor Scrap Shield EM Pulse Gun EM Pulse Gun Subdweller Laser Subdweller Machine Gun Barrage Gun Mining Laser Scrap Shield Fragment (49) Scrap Shield Fragment (43) Peak State ------------ > --- POWER ------------ Subdweller Power Source > --- PROPULSION ------- Light Treads Spiked Treads > --- UTILITY ---------- Large Storage Unit Light Armor Plating > --- WEAPON ----------- EM Pulse Gun Makeshift Laser > --- INVENTORY -------- Subdweller Power Source Wheel Wheel Compact Wheel Subdweller Monowheel Gun Armor Scrap Shield EM Pulse Gun Subdweller Laser Subdweller Machine Gun Barrage Gun Mini Grenade Launcher Mining Laser Scrap Shield Fragment [Rating: 15] Favorites ----------- Power Ion Engine Engine Ion Engine Propulsion Compact Wheel Treads Light Treads Wheel Compact Wheel Utility Large Storage Unit Device Seismic Detector Storage Large Storage Unit Protection Light Armor Plating Weapon EM Pulse Gun Energy Gun EM Pulse Gun Launcher Mini Grenade Launcher Special Weapon Mining Laser Build | -11 -10 -10 ------- Run | Yrd Mat Sub Slots Evolved . | . . . Power . | . . . Propulsion . | . . . Utility . | . . . Weapon . | . . . Parts Attached 26 | 8 11 7 Power 2 | 1 . 1 Engine 2 | 1 . 1 Core . | . . . Reactor . | . . . Propulsion 8 | 3 4 1 Treads 4 | . 3 1 Leg . | . . . Wheel 4 | 3 1 . Hover . | . . . Flight . | . . . Utility 6 | 2 1 3 Device 2 | 1 . 1 Storage 3 | 1 1 1 Processor . | . . . Hackware . | . . . Protection 1 | . . 1 Artifact . | . . . Weapon 10 | 2 6 2 Energy Gun 7 | 2 3 2 Energy Cannon . | . . . Ballistic Gun . | . . . Ballistic Cannon . | . . . Launcher 2 | . 2 . Special Weapon 1 | . 1 . Impact Weapon . | . . . Slashing Weapon . | . . . Piercing Weapon . | . . . Special Melee Weapon . | . . . Unidentified Prototypes . | . . . Parts Lost 4 | . 2 2 Power . | . . . Propulsion . | . . . Utility 2 | . . 2 Weapon 2 | . 2 . Highest Loss Streak 2 | . 2 1 To Critical Strikes . | . . . Average Backups 12 | 5 11 13 Power . | . 1 . Propulsion 4 | 3 3 4 Utility 3 | . 3 3 Weapon 4 | 1 3 5 Tool/Special . | . . . Unused Backups 12 | . 2 10 Power 3 | . . 3 Propulsion 2 | . 1 1 Utility 4 | . 1 3 Weapon 3 | . . 3 Tool/Special . | . . . Average Slot Usage (%) 99 | . 100 99 Engine 14 | . 14 14 Treads 2 | . 3 2 Wheel 25 | . 24 25 Device 12 | . 14 12 Storage 14 | . 14 14 Protection 1 | . . 1 Energy Gun 23 | . 22 24 Special Weapon 3 | . 4 3 Peak Build Rating 15 | 7 9 15 Average Rating 9 | 5 7 10 On Entrance 5 | . 7 8 Avg Prop Armor Cover (%) 5 | . 3 13 Naked Turns . | . . . Heaviest Build 88 | 15 30 88 Greatest Support 40 | 32 26 40 Greatest Overweight (x) 5 | . 1 5 Average Overweight (x) . | . . . Largest Inventory Capacity 25 | 8 15 25 Average Capacity 14 | 7 14 15 Most Carried 19 | 7 15 19 Average Carried 13 | 6 11 14 Final Capacity 25 | 8 15 25 Final Carried 19 | 7 15 19 Class Distribution -------------------- 97% | Mutant Dominant Class ---------------- Mutant | -10/Materials Mutant | -10/Subcaves Resources | -11 -10 -10 ----------- Run | Yrd Mat Sub Matter Collected 1266 | 280 348 638 Remotely . | . . . Salvage Created 1000 | 250 322 428 Parts 80 | 23 24 33 Haulers Intercepted 1 | . 1 . Recyclers Shooed . | . . . Parts Field Recycled . | . . . Retrieved Matter . | . . . Parts Self-Destructed 21 | . . 21 Prevented 1 | . . 1 Parts Restored . | . . . Kills | -11 -10 -10 ------- Run | Yrd Mat Sub Combat Hostiles Destroyed 17 | . 6 11 Guns 11 | . 2 9 AOE 6 | . 4 2 Classes Destroyed 11 | 2 6 3 Worker 1 | . 1 . Builder 1 | . 1 . Tunneler 8 | 8 . . Hauler 1 | . 1 . Recycler 2 | 1 1 . Watcher 2 | . 2 . Swarmer 8 | . 3 5 Grunt 3 | . 3 . Sentry 1 | . . 1 Cobbler 1 | . . 1 Subdweller 5 | . . 5 Best Kill Streak 5 | 5 2 2 Combat Bots Only 2 | . 2 2 Max Kills in Single Turn 2 | 1 2 2 Gunslinging 1 | . . 1 Exploded 2 | . 1 2 Melee . | . . . Uniques/NPCs Destroyed . | . . . Combat | -11 -10 -10 -------- Run | Yrd Mat Sub Hostile Shots Fired 104 | . 32 72 Missed 37 | . 5 32 Hits 67 | . 27 40 Projectile 67 | . 27 40 Damage Taken 995 | . 327 668 Core 250 | . 31 219 Absorbed by Shields . | . . . Regen/Repaired (Parts) 22 | . 22 . Core Remaining (%) 100 | 100 . . Volleys Fired 134 | 15 61 58 Largest 2 | 2 2 2 Hottest 100 | 80 100 100 Shots Fired 216 | 30 91 95 Gun 163 | 30 61 72 Cannon . | . . . Launcher 8 | . 4 4 Special 45 | . 26 19 Kinetic . | . . . Thermal 96 | . 31 65 Explosive 8 | . 4 4 Electromagnetic 112 | 30 56 26 Robot Hit Streak 19 | 7 6 19 Robot Miss Streak 5 | 3 5 2 Penetration Max . | . . . Secondary Targets 2 | . . 2 Max Gunslinging Chain 1 | . . 1 Shots Hit Robots 112 | 19 37 56 Core Hits 47 | 9 16 22 Critical Kills . | . . . Critical Parts Destroyed . | . . . Critical Strikes 5 | 2 . 3 Burn 3 | . . 3 Corrupt 2 | 2 . . Melee Attacks . | . . . Impact . | . . . Slashing . | . . . Piercing . | . . . Sneak Attacks . | . . . Combat Hostiles . | . . . Follow-up Attacks . | . . . Damage Inflicted 2039 | 320 869 850 Guns 1451 | 247 498 706 Cannons . | . . . Explosions 587 | 73 370 144 Melee . | . . . Ramming 1 | . 1 . Kinetic . | . . . Thermal 656 | 73 118 465 Explosive 408 | . 264 144 Electromagnetic 974 | 247 486 241 Impact . | . . . Slashing . | . . . Piercing . | . . . Highest Corruption . | . . . Average Corruption . | . . . Corruption Purged . | . . . Corruption Blocked . | . . . Overload Shots . | . . . Overflow Damage 1 | 1 . . Projectiles . | . . . Explosions 1 | 1 . . Melee . | . . . Knockbacks . | . . . Impact . | . . . Kinetic . | . . . Secondary . | . . . Self-Inflicted Damage 79 | . . 79 Shots 3 | . . 3 Rammed 1 | . 1 . Targets Rammed 1 | . 1 . Kicked . | . . . Crushed . | . . . Highest Temperature 310 | 72 310 2 Average Temperature 47 | 27 52 2 Received Heat Transfer 306 | . 159 147 Effects 1 | . 1 . Energy Bleed 1 | . 1 . Siege Activations . | . . . Martial Activations . | . . . Shielding Activations . | . . . Robots Disrupted 1 | . . 1 Combat Hostiles 1 | . . 1 Robots Corrupted . | . . . Combat Hostiles . | . . . Parts Fried 3 | 2 1 . Impact Corruptions . | . . . Robots Melted . | . . . Combat Hostiles . | . . . Parts Melted 1 | . . 1 Heat Transferred 1693 | 100 187 1406 Parts Sabotaged . | . . . Parts Stolen . | . . . Parts Stripped . | . . . Power Chain Reactions 4 | 2 2 . Alert | -11 -10 -10 ------- Run | Yrd Mat Sub Maximum Alert Level 1 | . 1 . Low Security (%) 91 | 100 89 . Level 1 8 | . 10 . Level 2 . | . . . Level 3 . | . . . Level 4 . | . . . Level 5 . | . . . High Security . | . . . Max Security . | . . . Peak Influence 230 | 15 230 . Initial 3 | . 3 . Average 49 | 2 57 . Influence Increases 730 | 45 525 160 Destroy 0b10 Robot/C 240 | . 120 120 Destroy 0b10 Robot/NC 75 | 45 30 . Destroy Leader 46 | . 36 10 Successful Hack 61 | . 61 . Select Force Hacks 60 | . 60 . Disable Machine 30 | . 30 . Destroy Structure 68 | . 68 . Partial Spotted 15 | . 15 . Lose Combat Pursuer 135 | . 105 30 Influence Decreases 692 | 40 322 330 Entered New Map 102 | . 2 100 Time Decay 558 | 40 310 208 Lost Part 30 | . 10 20 Lost Ally 2 | . . 2 Squads Dispatched 3 | . 3 . Investigation 2 | . 2 . Extermination . | . . . Reinforcement 1 | . 1 . Assault . | . . . Garrison . | . . . Intercept . | . . . Searches Triggered . | . . . Construction Impeded . | . . . Haulers Reinforced . | . . . Active Scanning Responses . | . . . Cargo Convoy Interrupts . | . . . Stealth | -11 -10 -10 --------- Run | Yrd Mat Sub Distress Signals 2 | . 2 . Communications Jammed . | . . . Distress Signals . | . . . Times Spotted 44 | . 19 25 Peak Tracking Total 9 | . 3 9 Tactical Retreats 7 | . 3 4 Traps | -11 -10 -10 ------- Run | Yrd Mat Sub Traps Triggered . | . . . Indirectly . | . . . Trap Hack Attempts . | . . . Triggered . | . . . Disarmed . | . . . Reprogrammed . | . . . Reused 2 | . . 2 Traps Extracted . | . . . Installed 2 | . . 2 Triggered . | . . . Most Traps Carried 1 | . . 1 Machines | -11 -10 -10 ---------- Run | Yrd Mat Sub Machines Disabled 4 | . 2 2 Max in Single Turn 1 | . 1 1 Machines Repaired . | . . . Machines Dismantled . | . . . Machines Sabotaged . | . . . Overloaded Fab Kills . | . . . Hacking | -11 -10 -10 --------- Run | Yrd Mat Sub Machines Accessed 12 | . 11 1 Terminals 8 | . 8 . Fabricators . | . . . Repair Stations 1 | . 1 . Recycling Units 2 | . 2 . Scanalyzers . | . . . Garrison Access . | . . . Total Hacks 42 | . 41 1 Successful 24 | . 23 1 Failed 18 | . 18 . Catastrophic 2 | . 2 . Database Lockouts . | . . . Manual 30 | . 30 . Terminals 35 | . 35 . Fabricators . | . . . Repair Stations 3 | . 3 . Recycling Units 3 | . 3 . Scanalyzers . | . . . Garrison Access . | . . . Terminal Hacks 9 | . 8 1 Robot Analysis 2 | . 2 . Prototype ID Bank 1 | . 1 . Emergency Access Points 1 | . 1 . Terminal Index 1 | . 1 . Locate Traps 2 | . 2 . Hauler Manifests 1 | . 1 . Proto ID Catalog 1 | . . 1 Fabricator Hacks . | . . . Repair Station Hacks 2 | . 2 . Scan Component 1 | . 1 . Repair 1 | . 1 . Recycling Unit Hacks . | . . . Scanalyzer . | . . . Garrison Access Hacks . | . . . Unauthorized Hacks 13 | . 13 . Terminals 11 | . 11 . Assimilate 2 | . 2 . Botnet 2 | . 2 . Operators 1 | . 1 . Skim 6 | . 6 . Fabricators . | . . . Repair Stations . | . . . Recycling Units 2 | . 2 . Tunnel 2 | . 2 . Scanalyzers . | . . . Garrison Access . | . . . Data Cores Recovered . | . . . Used . | . . . Hacking Detections 9 | . 9 . Full Trace Events 1 | . 1 . Feedback Events . | . . . Feedback Blocked . | . . . Robot Schematics Acquired . | . . . Robots Built . | . . . Authchips . | . . . Time . | . . . Total Robot Build Rating . | . . . Part Schematics Acquired . | . . . Parts Built . | . . . Authchips . | . . . Time . | . . . Total Part Build Rating . | . . . Part Studies Acquired . | . . . Parts Repaired 1 | . 1 . Time 13 | . 13 . Parts Recycled . | . . . Recycled Matter . | . . . Retrieved Matter . | . . . Retrieved Components . | . . . Parts Scanalyzed . | . . . Part Schematics Acquired . | . . . Parts Damaged . | . . . Bothacking | -11 -10 -10 ------------ Run | Yrd Mat Sub Used RIF Installer . | . . . Robots Hacked . | . . . Non-combat . | . . . Combat . | . . . Robot Hacks Applied . | . . . Relay Couplers Released . | . . . Fabnet Peak Effective % . | . . . Robots Rewired 1 | . . 1 Allies Hacked . | . . . Hacks Repelled . | . . . Allies | -11 -10 -10 -------- Run | Yrd Mat Sub Total Allies 1 | . . 1 Largest Group 1 | . . 1 Highest-Rated Group 19 | . . 19 Highest-Rated Ally 19 | . . 19 Total Orders . | . . . Ally Attacks 1 | . . 1 Total Damage . | . . . Kills . | . . . Allies Corrupted . | . . . Allies Melted . | . . . Intel | -11 -10 -10 ------- Run | Yrd Mat Sub Active Infowar (turns) 5128 | 5 1638 3485 Structural 308 | . . 308 Seismic 4820 | 5 1638 3177 Robot Analysis Total 2 | . 2 . Derelict Logs Recovered 2 | . . 2 Drone Launches . | . . . Drone Recoveries . | . . . Exploration | -11 -10 -10 ------------- Run | Yrd Mat Sub Turns Passed 5950 | 257 1638 4055 Spaces Moved 2876 | 135 870 1871 Core 1 | 1 . . Treads 200 | . 67 133 Legs . | . . . Wheels 2675 | 134 803 1738 Hover . | . . . Flight . | . . . Fastest Speed 50 | 50 90 100 Average Speed 108 | 91 110 109 Slowest Speed 240 | 100 240 175 Overloaded Moves . | . . . Propulsion Burnouts . | . . . Robots Hopped . | . . . Potential Cave-ins . | . . . Cave-ins Triggered . | . . . Exploration Rate (%) 56 | 3 90 77 Regions Visited 2 Branch Regions 1 Pre-discovered Areas 5 | . 4 1 Known Exits Taken . | . . . Unknown Exits Taken 2 | 1 1 . Scrap Searched 8 | . . 8 Spaces Dug 24 | . 24 . Terrain Destroyed 92 | 3 73 16 Melee . | . . . Projectile 25 | . 25 . AOE 67 | 3 48 16 Terrain Rammed . | . . . Walls Destroyed . | . . . Machines Disabled . | . . . Actions | -11 -10 -10 --------- Run | Yrd Mat Sub Total 5369 | 233 1392 3744 Wait 2197 | 69 415 1713 Move 2874 | 134 869 1871 Hop . | . . . Pick Up 40 | 7 11 22 Fast Attach 11 | 7 2 2 Attach 4 | . 2 2 Detach 3 | . 2 1 Swap 74 | 1 26 47 Drop 25 | . 3 22 Fire 134 | 15 61 58 Melee . | . . . Ram . | . . . Kick . | . . . Crush 1 | . 1 . Escape Stasis . | . . . Rewire 4 | . . 4 Trap 2 | . . 2 Miscellaneous . | . . . Route ------- -11/Scrapyard -10/Materials (discovered 6 exits: *Mat x3 / [*Min x2] / *Sub) -10/Subcaves (discovered 3 exits: *Mat x2 / [*Rec]) History --------- Turn | Location | Event 20 | -11/Scrapyard | Discovered new exit (range 15) 258 | -11/Scrapyard | Entered Materials 312 | -10/Materials | Build established: Mutant 545 | -10/Materials | Discovered new exit (range 5) 699 | -10/Materials | Discovered new exit (range 14) 895 | -10/Materials | Discovered new exit (range 5) 1156 | -10/Materials | Discovered new exit (range 8) 1296 | -10/Materials | Repaired EM Pulse Gun 1341 | -10/Materials | Learned 4 Recycling zone layouts 1421 | -10/Materials | Learned location of Mines (-9) 1490 | -10/Materials | Identified exit to Materials 1547 | -10/Materials | Learned 4 Recycling zone layouts 1889 | -10/Materials | Discovered new exit (range 7) 1896 | -10/Materials | Entered Subcaves 1897 | -10/Subcaves | Identified exit to Materials 3381 | -10/Subcaves | Disturbed a concealed Subdweller 3573 | -10/Subcaves | Shifting Twisted Machinery released Flamer 3586 | -10/Subcaves | Shifting Twisted Machinery released Mak. Laser 3705 | -10/Subcaves | Learned 2 Materials zone layouts 3959 | -10/Subcaves | A swath of the cavern ceiling suddenly collapsed 4190 | -10/Subcaves | Ambushed by Subdwellers from Twisted Machinery 4463 | -10/Subcaves | Shifting Twisted Machinery released Piercing Trap 4674 | -10/Subcaves | Discovered new exit (range 15) 4684 | -10/Subcaves | Core integrity fell below 50% 4935 | -10/Subcaves | Learned location of Mines (-10) 4968 | -10/Subcaves | Disturbed a concealed Subdweller 5350 | -10/Subcaves | Visited 4L-MR0's lab 5365 | -10/Subcaves | Found Prototype Protection 5370 | -10/Subcaves | Identified Gun Armor 5731 | -10/Subcaves | Core integrity fell below 20% 5951 | -10/Subcaves | Destroyed self with Mini Grenade Launcher Last Messages --------------- 05900_ S-10 Pest destroyed. 05900_ Lgt. Armor Plating destroyed. 05900_ Destroyed Lgt. Armor Plating. 05900_ S-10 Pest destroyed. 05908_ Acquired Huge Storage Unit. 05910_ Lgt. Assault Rifle fries itself beyond repair. 05911_ Lgt. Ion Engine fries itself beyond repair. 05911_ Acquired 35 matter. 05913_ Lgt. Assault Rifle fries itself beyond repair. 05915_ The unstable cave ceiling collapses. 05916_ Lgt. Assault Rifle fries itself beyond repair. 05926_ Acquired Scrap Shield Fragment. 05928_ Acquired Lrg. Matter Pod. 05931_ Acquired Structural Scanner. 05932_ 4L-MR0's Prototype Logs disabled. 05951_ Machine disabled. Map ----- +----------------------------------------------------+ | #????????????????????????????????????????????????? | | #????????????????????????????????????????????????? | | #????????????????????????????????????????????????? | | ###??????????????????????????????????????????????? | | ##??????????????????????????????????????????????? | | #??????????????????????????????????????????????? | | ##?????????????????????????????????????????????? | | #?????????????????????????????????????????????? | | #?????????????????????????????????????????????? | | ##?????????????????????????????????????????????? | | #??????????????????????????????????????????????? | | #??????????????????????????????????????????????? | | "########????????????????????????????????????????? | | ### # #????????????????????????????????????????? | | % ##????????????????????????????????????????? | | % #????????????????????????????????????????? | | % ##????????????????????????????????????????? | | ##### ###???????????????????????????????????????? | | ## ##????????????????#######???????????????? | | ## #????????????????# ] =#???????????????? | | #### #????????????????#%%##&######??????????? | | "# ####???????????????##### #######?????????? | | # ##?????????????????####" ### ####????????? | | # ##????############## ## ## ###????????? | | % "## ##???#" """ "# ## " " ##??####### | | "## #???#"u " ! @## & ##?######## | | """## #?##### R #### ####### # | | ##### ###" + ####### < ###### | | ??### ## ###########"#?## # | | ?## ##" ####???####%#?## ## | | ?# ## ###" %%"##### " #### ## | | ## #?####?#" | # ##### ##### # ### | | #??????##" ##" #### ############# | | "#?????####"" # "###### ###?########? | | /##?????# #### "###?## ### ##??????????? | | % ####### ## %[ %" #### ### ##??????????? | | ## # # ###??????????? | | ###??????????? | | ## ## ###??????????? | | ?##### # # ##### #### # # # # ##??????????? | | ?????##########???###??# ###########??????????? | | ???????????????????????### ############??????????? | | ???????????????????????????#?????????????????????? | | ?????????????????????????????????????????????????? | | ?????????????????????????????????????????????????? | | ?????????????????????????????????????????????????? | | ?????????????????????????????????????????????????? | | ?????????????????????????????????????????????????? | | ?????????????????????????????????????????????????? | | ?????????????????????????????????????????????????? | +----------------------------------------------------+ Best States ------------- Heat Dissipation 25 Energy Generation 15 Energy Capacity 250 Matter Stores 300 Matter Capacity 300 Sight Range 16 Terrain Scan Density 10 Armor Coverage 150 Evasion (%) 42 Recoil Reduction 2 Item Schematics ----------------- None Robot Schematics ------------------ None Fabricated ------------ Nothing Repaired ---------- EM Pulse Gun | 51% | -10/Materials Studied --------- None Alien Tech Used ----------------- None Achievements -------------- Art Critic Challenges ------------ None Game ------ Seed MultireflexWeaponsScythe Manual? 0 Play Time 01:00:51 Cumulative 701.9 hours Start 2026.07.05 @ 12:43:34 End 2026.07.05 @ 14:46:30 Sessions 1 Manual Loads 0 Difficulty Rogue Special Mode None Game No. 237 Rogue 233 Adventurer 4 Explorer 0 Win Type - Total 21 Types 9/2/6/0/0/0/2/2/0/0 Lore% 69 Gallery% 73 Achievement% 51 Wizard Run 0 Options --------- Layout 1 ASCII 0 Keyboard 0 Movement Arrows Keybinds 0 Fullscreen 1 Font 40/SmallcapsGlow Map View 50x40 Zoom Use 0% Tactical HUD 1 Map Filters NONE Filters NONE Steam 1 RUN: ae6b7c18-a358-4a15-9c46-63c59f54f93b